[Event "SixDays Budapest IM-A January 2024"]
[Site "Budapest"]
[Date "2024.01.31"]
[Round "8.4"]
[White "Orso, Miklos"]
[Black "Polyik, Peter"]
[Result "0-1"]
[ECO "B23"]
[WhiteElo "2172"]
[BlackElo "2289"]
[Annotator "ChessBase"]
[PlyCount "129"]
[EventDate "2024.01.26"]
[EventType "tourn"]
[EventCountry "HUN"]
[SourceTitle "playchess.com"]
[Source "ChessBase"]
[SourceQuality "1"]
[TimeControl "5400+30"]

1. e4 {[%emt 0:04:09]} c5 {[%emt 0:00:08]} 2. Nc3 {[%emt 0:00:08]} Nc6 {[%emt 0:00:08]} 3. f4 {[%emt 0:00:31]} g6 {[%emt 0:00:14]} 4. Nf3 {[%emt 0:00:09]} Bg7 {[%emt 0:00:07]} 5. Bc4 {[%emt 0:00:48]} e6 {[%emt 0:00:09]} 6. f5 {[%emt 0:02:38]} gxf5 {[%emt 0:08:14]} 7. d3 {[%emt 0:00:14]} Nge7 {[%emt 0:00:19]} 8. O-O {[%emt 0:00:19]} O-O {[%emt 0:05:59]} 9. Bg5 {[%emt 0:04:06]} f6 {[%emt 0:07:06]} 10. Be3 {[%emt 0:08:01]} b6 {[%emt 0:04:51]} 11. a3 {[%emt 0:05:08]} Kh8 {[%emt 0:16:26]} 12. Ba2 {[%emt 0:02:22]} Qe8 {[%emt 0:03:43]} 13. Nh4 {[%emt 0:11:02]} fxe4 {[%emt 0:04:56]} 14. dxe4 {[%emt 0:00:03]} Ng6 {[%emt 0:00:44]} 15. Nxg6+ {[%emt 0:03:13]} Qxg6 {[%emt 0:01:47]} 16. Rf3 {[%emt 0:04:09]} Bh6 {[%emt 0:13:20]} 17. Bf2 {[%emt 0:00:55]} Rg8 {[%emt 0:01:01]} 18. Rg3 {[%emt 0:00:39]} Qf7 {[%emt 0:00:07]} 19. Rxg8+ {[%emt 0:02:53]} Qxg8 {[%emt 0:00:26]} 20. Qf3 {[%emt 0:02:19]} Qg6 {[%emt 0:08:59]} 21. Bh4 {[%emt 0:02:23]} Bg5 {[%emt 0:00:32]} 22. Bg3 {[%emt 0:01:37]} Ba6 {[%emt 0:03:22]} 23. Ne2 {[%emt 0:02:43]} Rf8 {[%emt 0:02:23]} 24. c3 {[%emt 0:02:09]} Qh6 {[%emt 0:00:59]} 25. Rf1 {[%emt 0:05:06]} Bd2 {[%emt 0:00:52]} 26. c4 {[%emt 0:05:21]} Be3+ {[%emt 0:04:06]} 27. Kh1 {[%emt 0:00:32]} Nd4 {[%emt 0:00:13]} 28. Bf4 {[%emt 0:05:43]} Nxf3 {[%emt 0:02:51]} 29. Bxh6 {[%emt 0:00:09]} Bxh6 {[%emt 0:00:04]} 30. gxf3 {[%emt 0:03:39]} d5 {[%emt 0:00:36]} 31. Nc3 {[%emt 0:00:59]} dxc4 {[%emt 0:01:33]} 32. Rd1 {[%emt 0:00:15]} Rf7 {[%emt 0:01:09]} 33. a4 {[%emt 0:00:40]} f5 {[%emt 0:01:34]} 34. exf5 {[%emt 0:02:19]} Bb7 {[%emt 0:01:54]} 35. Rd8+ {[%emt 0:00:38]} Kg7 {[%emt 0:00:05]} 36. Kg2 {[%emt 0:00:50]} Rxf5 {[%emt 0:00:28]} 37. Rd7+ {[%emt 0:00:14]} Rf7 {[%emt 0:00:03]} 38. Rxf7+ {[%emt 0:00:07]} Kxf7 {[%emt 0:00:04]} 39. Bxc4 {[%emt 0:00:08]} Kf6 {[%emt 0:01:26]} 40. Nb5 {[%emt 0:00:49]} Bc6 {[%emt 0:02:41]} 41. Bd3 {[%emt 0:07:17]} Bc1 {[%emt 0:01:14]} 42. b3 {[%emt 0:00:54]} Bd5 {[%emt 0:00:17]} 43. Bc2 {[%emt 0:00:27]} a5 {[%emt 0:01:00]} 44. Nd6 {[%emt 0:00:49]} Ke5 {[%emt 0:02:01]} 45. Nc4+ {[%emt 0:00:15]} Bxc4 {[%emt 0:00:04]} 46. bxc4 {[%emt 0:00:25]} h6 {[%emt 0:00:23]} 47. Kf2 {[%emt 0:04:21]} Kd4 {[%emt 0:00:05]} 48. Ke2 {[%emt 0:01:34]} Kxc4 {[%emt 0:00:06]} 49. Bd3+ {[%emt 0:00:21]} Kb3 {[%emt 0:00:53]} 50. Kd1 {[%emt 0:00:18]} Bf4 {[%emt 0:00:17]} 51. Bc2+ {[%emt 0:00:07]} Kb4 {[%emt 0:00:07]} 52. h3 {[%emt 0:00:14]} b5 {[%emt 0:00:26]} 53. axb5 {[%emt 0:01:00]} a4 {[%emt 0:00:57]} 54. Bb1 {[%emt 0:01:22]} Kxb5 {[%emt 0:01:39]} 55. Ba2 {[%emt 0:02:24]} c4 {[%emt 0:00:10]} 56. Kc2 {[%emt 0:00:16]} Kb4 {[%emt 0:00:07]} 57. Bb1 {[%emt 0:00:33]} a3 {[%emt 0:00:46]} 58. Ba2 {[%emt 0:00:15]} Kc5 {[%emt 0:00:05]} 59. Kc3 {[%emt 0:00:49]} Be5+ {[%emt 0:00:05]} 60. Kd2 {[%emt 0:00:32]} Kd4 {[%emt 0:00:08]} 61. Kc2 {[%emt 0:00:09]} Bf4 {[%emt 0:01:20]} 62. Bb1 {[%emt 0:00:25]} Ke3 {[%emt 0:00:42]} 63. Ba2 {[%emt 0:01:29]} Kxf3 {[%emt 0:00:55]} 64. Bxc4 {[%emt 0:00:08]} e5 {[%emt 0:00:08]} 65. Kd1 {[%emt 0:00:34]} 0-1

[Event "SixDays Budapest IM-A January 2024"]
[Site "Budapest"]
[Date "2024.01.31"]
[Round "8.5"]
[White "Balla, Tamas-Kristof"]
[Black "Vetokhina, Sofia"]
[Result "1-0"]
[ECO "E81"]
[WhiteElo "2283"]
[BlackElo "2020"]
[Annotator "NA RC"]
[PlyCount "87"]
[EventDate "2024.01.26"]
[EventType "tourn"]
[EventCountry "HUN"]
[SourceTitle "playchess.com"]
[Source "ChessBase"]
[SourceQuality "1"]
[TimeControl "5400+30"]

1. d4 {[%emt 0:00:02]} Nf6 {[%emt 0:00:52]} 2. c4 {[%emt 0:00:04]} g6 {[%emt 0:00:31]} 3. Nc3 {[%emt 0:00:05]} Bg7 {[%emt 0:00:09]} 4. e4 {[%emt 0:00:05]} d6 {[%emt 0:00:06]} 5. f3 $14 {[%emt 0:00:07]} O-O {[%emt 0:00:09]} 6. Be3 {[%emt 0:00:03]} Nbd7 {[%emt 0:02:45]} 7. Nh3 {[%emt 0:00:09]} e5 {[%emt 0:01:55]} 8. d5 {[%emt 0:00:57]} a5 {[%emt 0:04:07]} 9. Qd2 {[%emt 0:00:15]} Nc5 {[%emt 0:01:18]} 10. Nf2 {[%emt 0:01:48]} Ne8 {[%emt 0:10:23]} 11. g4 {[%emt 0:05:09]} f5 {[%emt 0:05:26]} 12. gxf5 {[%emt 0:02:24]} gxf5 {[%emt 0:01:49]} 13. Rg1 {[%emt 0:01:39]} f4 {[%emt 0:02:10]} 14. Bxc5 {[%emt 0:00:32]} dxc5 {[%emt 0:00:07]} 15. O-O-O {[%emt 0:05:14]} Ra6 {[%emt 0:08:14]} 16. Bh3 {[%emt 0:05:01]} Bd7 {[%emt 0:13:25]} 17. Bxd7 {[%emt 0:03:11]} Qxd7 {[%emt 0:00:02]} 18. Nd3 {[%emt 0:00:15]} Qe7 {[%emt 0:00:53]} 19. Qf2 {[%emt 0:00:17]} b6 {[%emt 0:03:45]} 20. Nb5 {[%emt 0:00:09]} a4 {[%emt 0:03:57]} 21. Rg4 {[%emt 0:02:27]} Kh8 {[%emt 0:03:59]} 22. Rdg1 {[%emt 0:00:42]} Bf6 {[%emt 0:05:09]} 23. Qg2 {[%emt 0:00:40]} Qf7 {[%emt 0:01:56]} 24. Qh3 {[%emt 0:00:23]} Nd6 {[%emt 0:03:27]} 25. Nxd6 {[%emt 0:07:35]} cxd6 {[%emt 0:00:04]} 26. Nf2 {[%emt 0:00:07]} Raa8 {[%emt 0:07:03]} 27. Nd1 {[%emt 0:00:35]} Rg8 {[%emt 0:06:39]} 28. Nc3 {[%emt 0:00:30]} Rxg4 {[%emt 0:00:20]} 29. Qxg4 {[%emt 0:00:15]} Qg7 {[%emt 0:02:03]} 30. Qxg7+ {[%emt 0:01:06]} Bxg7 {[%emt 0:00:01]} 31. Nb5 {[%emt 0:00:33]} Rd8 {[%emt 0:00:17]} 32. Kc2 {[%emt 0:02:23]} Rd7 {[%emt 0:00:16]} 33. b3 {[%emt 0:01:07]} axb3+ {[%emt 0:03:21]} 34. axb3 {[%emt 0:00:05]} Bf8 {[%emt 0:00:08]} 35. Kd3 {[%emt 0:04:06]} Be7 {[%emt 0:04:27]} 36. Ra1 {[%emt 0:00:43]} Kg7 {[%emt 0:00:12]} 37. Ra6 {[%emt 0:04:13]} Kg6 {[%emt 0:00:19]} 38. Rxb6 {[%emt 0:00:43]} Kh5 {[%emt 0:00:08]} 39. Ra6 {[%emt 0:12:34]} Kh4 {[%emt 0:00:05]} 40. b4 {[%emt 0:08:36]} Bf8 {[%emt 0:02:58]} 41. bxc5 {[%emt 0:01:07]} dxc5 {[%emt 0:00:03]} 42. Re6 {[%emt 0:00:22]} Bg7 {[%emt 0:00:22]} 43. d6 {[%emt 0:00:28]} Bf8 {[%emt 0:03:49]} 44. Rxe5 {[%emt 0:00:20]} 1-0

[Event "SixDays Budapest IM-A January 2024"]
[Site "Budapest"]
[Date "2024.02.01"]
[Round "9.1"]
[White "Vetokhina, Sofia"]
[Black "Kuru, Atilla"]
[Result "0-1"]
[ECO "D10"]
[WhiteElo "2020"]
[BlackElo "2220"]
[Annotator "ChessBase"]
[PlyCount "106"]
[EventDate "2024.01.26"]
[EventType "tourn"]
[EventCountry "HUN"]
[SourceTitle "playchess.com"]
[Source "ChessBase"]
[SourceQuality "1"]
[TimeControl "5400+30"]

1. d4 {[%emt 0:00:02]} d5 {[%emt 0:03:44]} 2. c4 {[%emt 0:00:10]} c6 {[%emt 0:00:04]} 3. Nc3 {[%emt 0:00:05]} dxc4 {[%emt 0:00:15]} 4. e3 {[%emt 0:00:06]} b5 {[%emt 0:02:41]} 5. a4 {[%emt 0:00:09]} b4 {[%emt 0:00:05]} 6. Ne4 {[%emt 0:00:05]} Qd5 {[%emt 0:00:05]} 7. Nd2 {[%emt 0:00:06]} c3 {[%emt 0:00:04]} 8. bxc3 {[%emt 0:00:05]} bxc3 {[%emt 0:00:03]} 9. Nb1 {[%emt 0:00:05]} Qa5 {[%emt 0:00:04]} 10. Qc2 {[%emt 0:00:06]} e6 {[%emt 0:00:20]} 11. Nxc3 {[%emt 0:00:06]} Na6 {[%emt 0:00:17]} 12. Bxa6 {[%emt 0:03:59]} Bxa6 {[%emt 0:00:11]} 13. Bd2 {[%emt 0:00:43]} Bb4 {[%emt 0:00:56]} 14. Ne4 {[%emt 0:08:48]} Bxd2+ {[%emt 0:00:36]} 15. Qxd2 {[%emt 0:01:28]} Qd5 {[%emt 0:00:49]} 16. f3 {[%emt 0:06:49]} Rd8 {[%emt 0:01:52]} 17. Rc1 {[%emt 0:02:44]} Ne7 {[%emt 0:02:51]} 18. Nc5 {[%emt 0:03:51]} Bc8 {[%emt 0:00:23]} 19. Ne2 {[%emt 0:04:40]} e5 {[%emt 0:03:05]} 20. e4 {[%emt 0:03:50]} Qd6 {[%emt 0:00:18]} 21. O-O {[%emt 0:00:27]} O-O {[%emt 0:06:16]} 22. Rfd1 {[%emt 0:02:44]} f5 {[%emt 0:02:50]} 23. Qc2 {[%emt 0:03:45]} fxe4 {[%emt 0:02:28]} 24. dxe5 {[%emt 0:06:07]} Qxe5 {[%emt 0:00:13]} 25. Nxe4 {[%emt 0:02:21]} Be6 {[%emt 0:01:13]} 26. Qc5 {[%emt 0:10:43]} Bd5 {[%emt 0:00:39]} 27. N2c3 {[%emt 0:02:39]} Ng6 {[%emt 0:00:18]} 28. Qd4 {[%emt 0:06:20]} Qe7 {[%emt 0:01:08]} 29. Qc5 {[%emt 0:02:00]} Qe5 {[%emt 0:03:32]} 30. Qd4 {[%emt 0:00:10]} Qh5 {[%emt 0:00:48]} 31. Ng3 {[%emt 0:01:56]} Qg5 {[%emt 0:00:05]} 32. Nce4 {[%emt 0:01:19]} Qe7 {[%emt 0:01:22]} 33. Qc5 {[%emt 0:00:46]} Qf7 {[%emt 0:00:22]} 34. a5 {[%emt 0:01:05]} Nf4 {[%emt 0:00:15]} 35. Qe3 {[%emt 0:02:20]} Qg6 {[%emt 0:01:32]} 36. Rd2 {[%emt 0:02:18]} h5 {[%emt 0:00:49]} 37. h4 {[%emt 0:02:36]} Rde8 {[%emt 0:01:44]} 38. Kh2 {[%emt 0:02:06]} Qf7 {[%emt 0:00:59]} 39. Qc3 {[%emt 0:02:08]} Qc7 {[%emt 0:01:11]} 40. Rxd5 {[%emt 0:03:34]} Nxd5 {[%emt 0:00:24]} 41. Qxc6 {[%emt 0:00:08]} Qxc6 {[%emt 0:00:43]} 42. Rxc6 {[%emt 0:00:01]} Nf4 {[%emt 0:01:40]} 43. Rc5 {[%emt 0:02:07]} Rc8 {[%emt 0:00:48]} 44. a6 {[%emt 0:01:47]} Rxc5 {[%emt 0:00:25]} 45. Nxc5 {[%emt 0:00:02]} Rc8 {[%emt 0:00:02]} 46. Nge4 {[%emt 0:00:01]} Rc6 {[%emt 0:00:10]} 47. g4 {[%emt 0:04:08]} Ne6 {[%emt 0:00:18]} 48. Nb3 {[%emt 0:01:09]} Rxa6 {[%emt 0:00:38]} 49. gxh5 {[%emt 0:00:13]} Ra3 {[%emt 0:00:09]} 50. Ned2 {[%emt 0:00:34]} a5 {[%emt 0:00:09]} 51. Kg3 {[%emt 0:00:07]} a4 {[%emt 0:00:05]} 52. Nc1 {[%emt 0:00:17]} Rc3 {[%emt 0:00:02]} 53. Na2 {[%emt 0:00:30]} Rc2 {[%emt 0:00:02]} 0-1

[Event "SixDays Budapest IM-A January 2024"]
[Site "Budapest"]
[Date "2024.02.01"]
[Round "9.2"]
[White "Polyik, Peter"]
[Black "Balla, Tamas-Kristof"]
[Result "1/2-1/2"]
[ECO "B41"]
[WhiteElo "2289"]
[BlackElo "2283"]
[Annotator "ChessBase"]
[PlyCount "20"]
[EventDate "2024.01.26"]
[EventType "tourn"]
[EventCountry "HUN"]
[SourceTitle "playchess.com"]
[Source "ChessBase"]
[SourceQuality "1"]
[TimeControl "5400+30"]

1. e4 {[%emt 0:00:03]} c5 {[%emt 0:01:22]} 2. Nf3 {[%emt 0:00:04]} e6 {[%emt 0:00:03]} 3. d4 {[%emt 0:00:05]} cxd4 {[%emt 0:00:03]} 4. Nxd4 {[%emt 0:00:04]} a6 {[%emt 0:00:03]} 5. c4 {[%emt 0:00:05]} Nf6 {[%emt 0:00:06]} 6. Nc3 {[%emt 0:00:04]} Qc7 {[%emt 0:00:04]} 7. a3 {[%emt 0:00:04]} b6 {[%emt 0:00:04]} 8. Be3 {[%emt 0:00:05]} Bb7 {[%emt 0:00:04]} 9. f3 {[%emt 0:00:03]} d6 {[%emt 0:00:04]} 10. Qd2 {[%emt 0:00:05]} Nbd7 {[%emt 0:00:03]} 1/2-1/2

[Event "SixDays Budapest IM-A January 2024"]
[Site "Budapest"]
[Date "2024.02.01"]
[Round "9.3"]
[White "Lim, Zhuo Ren"]
[Black "Orso, Miklos"]
[Result "1/2-1/2"]
[ECO "E15"]
[WhiteElo "2218"]
[BlackElo "2172"]
[Annotator "ChessBase"]
[PlyCount "33"]
[EventDate "2024.01.26"]
[EventType "tourn"]
[EventCountry "HUN"]
[SourceTitle "playchess.com"]
[Source "ChessBase"]
[SourceQuality "1"]
[TimeControl "5400+30"]

1. d4 {[%emt 0:17:14]} Nf6 {[%emt 0:00:11]} 2. c4 {[%emt 0:00:08]} e6 {[%emt 0:00:18]} 3. Nf3 {[%emt 0:00:11]} b6 {[%emt 0:00:55]} 4. g3 {[%emt 0:00:08]} Ba6 {[%emt 0:00:23]} 5. b3 {[%emt 0:00:13]} d5 {[%emt 0:00:09]} 6. Bg2 {[%emt 0:00:30]} dxc4 {[%emt 0:03:47]} 7. O-O {[%emt 0:00:33]} cxb3 {[%emt 0:01:43]} 8. Ne5 {[%emt 0:00:33]} Nd5 {[%emt 0:01:28]} 9. axb3 {[%emt 0:00:43]} Bb7 {[%emt 0:05:08]} 10. Bb2 {[%emt 0:10:33]} Nd7 {[%emt 0:05:17]} 11. Nxd7 {[%emt 0:07:51]} Qxd7 {[%emt 0:00:40]} 12. Nd2 {[%emt 0:00:27]} Be7 {[%emt 0:05:38]} 13. Qb1 {[%emt 0:04:34]} O-O {[%emt 0:04:04]} 14. Be4 {[%emt 0:00:53]} g6 {[%emt 0:01:50]} 15. h4 {[%emt 0:00:51]} Bf6 {[%emt 0:04:03]} 16. h5 {[%emt 0:02:24]} a5 {[%emt 0:06:06]} 17. Nf3 {[%emt 0:03:50]} 1/2-1/2

[Event "SixDays Budapest IM-A January 2024"]
[Site "Budapest"]
[Date "2024.02.01"]
[Round "9.4"]
[White "Szalay-Ocsak, Bank"]
[Black "Cieslak, Patryk"]
[Result "1/2-1/2"]
[ECO "A06"]
[WhiteElo "2165"]
[BlackElo "2284"]
[Annotator "ChessBase"]
[PlyCount "50"]
[EventDate "2024.01.26"]
[EventType "tourn"]
[EventCountry "HUN"]
[SourceTitle "playchess.com"]
[Source "ChessBase"]
[SourceQuality "1"]
[TimeControl "5400+30"]

1. Nf3 {[%emt 0:00:02]} d5 {[%emt 0:00:09]} 2. b3 {[%emt 0:00:12]} Nf6 {[%emt 0:00:45]} 3. Bb2 {[%emt 0:00:12]} e6 {[%emt 0:00:01]} 4. e3 {[%emt 0:00:40]} Bd6 {[%emt 0:00:23]} 5. c4 {[%emt 0:03:38]} O-O {[%emt 0:00:35]} 6. Be2 {[%emt 0:00:13]} b6 {[%emt 0:01:19]} 7. O-O {[%emt 0:01:57]} Bb7 {[%emt 0:00:33]} 8. d3 {[%emt 0:00:07]} Nbd7 {[%emt 0:02:12]} 9. Nbd2 {[%emt 0:01:19]} c6 {[%emt 0:06:45]} 10. a3 {[%emt 0:13:11]} e5 {[%emt 0:03:05]} 11. e4 {[%emt 0:10:21]} dxe4 {[%emt 0:05:09]} 12. dxe4 {[%emt 0:04:59]} Qe7 {[%emt 0:04:37]} 13. Qc2 {[%emt 0:03:05]} a5 {[%emt 0:07:32]} 14. h3 {[%emt 0:06:51]} Rfd8 {[%emt 0:04:04]} 15. Rfd1 {[%emt 0:02:24]} Ne8 {[%emt 0:06:19]} 16. Nf1 {[%emt 0:00:38]} g6 {[%emt 0:02:50]} 17. Ne3 {[%emt 0:02:41]} f6 {[%emt 0:01:55]} 18. g3 {[%emt 0:02:47]} Bc5 {[%emt 0:01:12]} 19. h4 {[%emt 0:02:54]} Nf8 {[%emt 0:05:32]} 20. Rxd8 {[%emt 0:04:43]} Rxd8 {[%emt 0:00:20]} 21. h5 {[%emt 0:01:39]} Bc8 {[%emt 0:01:24]} 22. Kg2 {[%emt 0:01:00]} Ng7 {[%emt 0:08:49]} 23. hxg6 {[%emt 0:01:18]} hxg6 {[%emt 0:00:01]} 24. Nh4 {[%emt 0:04:51]} g5 {[%emt 0:17:51]} 25. Nf3 {[%emt 0:08:52]} Nfe6 {[%emt 0:01:51]} 1/2-1/2

[Event "SixDays Budapest IM-A January 2024"]
[Site "Budapest"]
[Date "2024.02.01"]
[Round "9.5"]
[White "Hacker, Jonas"]
[Black "Urhegyi, Marton"]
[Result "1/2-1/2"]
[ECO "B31"]
[WhiteElo "2420"]
[BlackElo "2255"]
[Annotator "ChessBase"]
[PlyCount "79"]
[EventDate "2024.01.26"]
[EventType "tourn"]
[EventCountry "HUN"]
[SourceTitle "playchess.com"]
[Source "ChessBase"]
[SourceQuality "1"]
[TimeControl "5400+30"]

1. e4 {[%emt 0:00:05]} c5 {[%emt 0:02:00]} 2. Nf3 {[%emt 0:00:06]} Nc6 {[%emt 0:00:13]} 3. Bb5 {[%emt 0:00:06]} g6 {[%emt 0:00:16]} 4. O-O {[%emt 0:00:08]} Bg7 {[%emt 0:00:06]} 5. c3 {[%emt 0:00:09]} Nf6 {[%emt 0:00:58]} 6. Re1 {[%emt 0:00:07]} O-O {[%emt 0:00:47]} 7. d4 {[%emt 0:00:04]} d5 {[%emt 0:00:31]} 8. e5 {[%emt 0:00:06]} Ne4 {[%emt 0:00:13]} 9. Bxc6 {[%emt 0:00:07]} bxc6 {[%emt 0:00:04]} 10. Be3 {[%emt 0:00:13]} Qb6 {[%emt 0:01:27]} 11. Qc1 {[%emt 0:00:24]} c4 {[%emt 0:00:28]} 12. Nbd2 {[%emt 0:06:08]} Nxd2 {[%emt 0:00:08]} 13. Nxd2 {[%emt 0:02:21]} Bf5 {[%emt 0:00:05]} 14. b3 {[%emt 0:02:27]} Bd3 {[%emt 0:00:05]} 15. Qa3 {[%emt 0:11:44]} e6 {[%emt 0:00:35]} 16. Bg5 {[%emt 0:05:21]} Rfb8 {[%emt 0:09:16]} 17. h4 {[%emt 0:05:13]} Bf8 {[%emt 0:06:06]} 18. Be7 {[%emt 0:02:40]} Bh6 {[%emt 0:05:44]} 19. Qc1 {[%emt 0:04:51]} Rb7 {[%emt 0:02:57]} 20. Bf6 {[%emt 0:04:37]} cxb3 {[%emt 0:06:45]} 21. axb3 {[%emt 0:00:52]} c5 {[%emt 0:04:44]} 22. Nc4 {[%emt 0:13:43]} Bxc1 {[%emt 0:02:21]} 23. Nxb6 {[%emt 0:00:03]} Rxb6 {[%emt 0:02:00]} 24. Rexc1 {[%emt 0:06:14]} Rxb3 {[%emt 0:05:30]} 25. dxc5 {[%emt 0:00:18]} Rb7 {[%emt 0:13:35]} 26. Ra5 {[%emt 0:04:08]} h6 {[%emt 0:06:28]} 27. Rd1 {[%emt 0:03:41]} Bc4 {[%emt 0:03:35]} 28. h5 {[%emt 0:06:26]} Rc8 {[%emt 0:04:21]} 29. f3 {[%emt 0:02:46]} Bb5 {[%emt 0:02:42]} 30. hxg6 {[%emt 0:06:51]} fxg6 {[%emt 0:00:19]} 31. Be7 {[%emt 0:01:32]} Rxe7 {[%emt 0:03:58]} 32. Rxb5 {[%emt 0:00:01]} Rec7 {[%emt 0:00:54]} 33. Ra1 {[%emt 0:01:42]} Rxc5 {[%emt 0:01:51]} 34. Rxc5 {[%emt 0:01:05]} Rxc5 {[%emt 0:00:02]} 35. Ra6 {[%emt 0:00:08]} Kf7 {[%emt 0:05:29]} 36. Rxa7+ {[%emt 0:01:14]} Kf8 {[%emt 0:00:33]} 37. Ra8+ {[%emt 0:00:06]} Kf7 {[%emt 0:00:10]} 38. Ra7+ {[%emt 0:00:12]} Kf8 {[%emt 0:00:04]} 39. Ra3 {[%emt 0:03:50]} h5 {[%emt 0:01:15]} 40. Ra8+ {[%emt 0:02:09]} 1/2-1/2